bitfinex-derivatives/quotes_BNBF0:USTF0_20250330
["timestamp","ask_amount","ask_price","bid_price","bid_amount"]
[1743350882912,8.405,601.83,601.12,2.53385896]
[1743350884107,8.405,601.83,601.11,2.53385896]
[1743350885510,8.405,601.83,601.1,2.53385896]
[1743350886814,8.405,601.83,601.09,2.53385896]
[1743350890216,8.405,601.83,601.08,0.28924195]
[1743350891412,8.405,601.83,601.05,2.53385896]
[1743350891619,8.405,601.83,600.22,2.53385896]
[1743350891818,8.405,601.83,601.06,0.28929484]
[1743350892213,8.405,601.83,600.24,0.33320005]
[1743350894717,8.405,601.83,600.25,0.28939709]
[1743350894916,8.405,601.83,600.27,0.3331834]
[1743350895522,8.405,601.83,600.29,2.53385896]
[1743350895720,8.405,601.83,600.31,0.3331612]
[1743350896824,8.405,601.83,600.36,2.53385896]
[1743350897025,8.405,601.83,600.38,0.33312235]
[1743350901231,8.405,601.83,600.89,2.53385896]
[1743350902530,8.405,601.83,600.91,2.53385896]
[1743350902725,8.405,601.83,600.92,0.332823]
[1743350904331,8.405,601.83,600.99,2.53385896]
[1743350904531,8.405,601.83,601.0,0.3327787]
[1743350905531,8.405,601.83,601.0,2.86663766]
[1743350906935,8.405,601.83,601.0,0.3327787]
[1743350936365,8.405,601.83,601.06,2.53385896]
[1743350936559,8.405,601.83,601.07,0.33273994]
[1743350939464,8.405,601.83,601.07,2.8665989]
[1743350940967,8.405,601.83,601.07,0.33273994]
[1743350967681,8.405,601.83,601.15,2.53385896]
[1743350968984,8.405,601.83,601.18,2.53385896]
[1743350970987,8.405,601.83,601.19,2.53385896]
[1743350972389,8.405,601.83,601.24,2.53385896]
[1743350974790,8.405,601.83,601.26,2.53385896]
[1743350976087,8.405,601.83,601.19,0.28917585]
[1743350978389,8.405,601.83,601.17,2.53385896]
[1743350978789,8.405,601.83,601.19,0.28918666]
[1743350981492,8.405,601.83,601.18,2.53385896]
[1743350981695,8.405,601.83,601.19,0.28918546]
[1743350982395,8.405,601.83,601.2,2.53385896]
[1743350983495,8.405,601.83,601.22,2.53385896]
[1743350984389,8.405,601.83,601.07,0.33273994]
[1743350984390,8.405,601.83,601.18,2.53385896]
[1743350984796,8.405,601.83,601.19,0.28918786]
[1743350986194,8.405,601.83,601.37,2.53385896]
[1743350988795,8.405,601.83,601.39,2.53385896]
[1743350990091,8.405,601.83,601.4,2.53385896]
[1743350993198,8.405,601.83,601.41,2.53385896]
[1743350994396,8.405,601.83,601.42,2.53385896]
[1743350996098,8.405,601.83,601.36,0.28916023]
[1743350996503,8.405,601.83,601.26,2.53385896]
[1743350996704,8.405,601.83,601.36,0.28917825]
[1743350997105,8.405,601.83,601.26,2.53385896]
[1743350997310,8.405,601.83,601.09,2.53385896]
[1743350997702,8.405,601.83,601.1,0.33272334]
[1743350998906,8.405,601.83,601.1,2.8665823]
[1743350999104,8.405,601.83,601.11,0.28919868]
[1743350999304,8.405,601.83,601.11,0.62191648]
[1743350999499,8.405,601.83,601.11,0.3327178]
[1743350999707,8.405,601.83,601.11,0.62191408]
[1743351002312,8.405,601.83,601.11,0.3327178]
[1743351002711,8.405,601.83,601.11,0.62191408]
[1743351004115,8.405,601.83,601.12,0.33271227]
[1743351068787,8.405,601.83,601.26,2.53385896]
[1743351070084,8.405,601.83,601.17,2.53385896]
[1743351071490,8.405,601.83,601.12,0.33271227]
[1743351071889,8.405,601.83,601.13,0.2892131]
[1743351080493,8.405,601.83,601.12,0.33271227]
[1743351083094,8.405,601.83,601.13,0.28925276]
[1743351083389,8.405,601.83,601.12,0.33271227]
[1743351083889,8.405,601.83,601.13,0.28925276]
[1743351086389,8.405,601.83,601.12,0.33271227]
[1743351086895,8.405,601.83,601.13,0.28925276]
[1743351092496,8.405,601.83,601.12,0.33271227]
[1743351092900,8.405,601.83,601.13,0.28923834]
[1743351095604,8.405,601.83,601.12,0.33271227]
[1743351095802,8.405,601.83,601.13,0.28919748]
[1743351096004,8.405,601.83,601.13,2.82305644]
[1743351097103,8.405,601.83,601.25,2.53385896]
[1743351097906,8.405,601.83,601.2,2.53385896]
[1743351099809,8.405,601.83,601.18,2.53385896]
[1743351100808,8.405,601.83,601.19,0.33267353]
[1743351102111,8.405,601.83,601.26,2.53385896]
[1743351103306,8.405,601.83,601.19,0.33267353]
[1743351103307,8.405,601.83,601.27,2.53385896]
[1743351104811,8.405,601.83,601.24,2.53385896]
[1743351106109,8.405,601.83,601.19,0.62182175]
[1743351107508,8.405,601.83,601.19,0.33267353]
[1743351107913,8.405,601.83,601.19,0.62183616]
[1743351110510,8.405,601.83,601.19,0.33267353]
[1743351110914,8.405,601.83,601.19,0.62183857]
[1743351113418,8.405,601.83,601.19,0.33267353]
[1743351113913,8.405,601.83,601.19,0.6218662]
[1743351116417,8.405,601.83,601.19,0.33267353]
[1743351116919,8.405,601.83,601.19,0.62185298]
[1743351119528,8.405,601.83,601.19,0.33267353]
[1743351119925,8.405,601.83,601.19,0.62185298]
[1743351122529,8.405,601.83,601.19,0.33267353]
[1743351122825,8.405,601.83,601.19,0.62185298]
[1743351123633,8.405,601.83,601.19,3.15571194]
[1743351125332,8.405,601.83,601.22,2.53385896]
[1743351126832,8.405,601.83,601.2,0.28917585]
[1743351128425,8.405,601.83,601.19,0.33267353]
[1743351129030,8.405,601.83,601.2,0.28918546]
[1743351131632,8.405,601.83,601.19,0.33267353]
[1743351131932,8.405,601.83,601.2,0.28917945]
[1743351137639,8.405,601.83,601.19,0.33267353]
[1743351137833,8.405,601.83,601.2,0.28920709]
[1743351140441,8.405,601.83,601.19,0.33267353]
[1743351140835,8.405,601.83,601.2,0.2892131]
[1743351143543,8.405,601.83,601.19,0.33267353]
[1743351144046,8.405,601.83,601.2,0.28924555]
[1743351146446,8.405,601.83,601.19,0.33267353]
[1743351146840,8.405,601.83,601.2,0.28923233]
[1743351152552,8.405,601.83,601.19,0.33267353]
[1743351153054,8.405,601.83,601.2,0.28922512]
[1743351155445,8.405,601.83,601.19,0.33267353]
[1743351155651,8.405,601.83,601.2,0.28922512]
[1743351158454,8.405,601.83,601.19,0.33267353]
[1743351158760,8.405,601.83,601.2,0.28922512]
[1743351161558,8.405,601.83,601.19,0.33267353]
[1743351161753,8.405,601.83,601.2,0.2892155]
[1743351164457,8.405,601.83,601.19,0.33267353]
[1743351164964,8.405,601.83,601.2,0.28921791]
[1743351167563,8.405,601.83,601.19,0.33267353]
[1743351167862,8.405,601.83,601.2,0.28923473]
[1743351170359,8.405,601.83,600.72,2.53385896]
[1743351170559,8.405,601.83,600.73,2.86678723]
[1743351170764,8.405,601.83,601.2,0.28931529]
[1743351170966,8.405,601.83,600.74,0.33292272]
[1743351173763,8.405,601.83,600.75,0.28934054]
[1743351174065,8.405,601.83,600.76,0.33291164]
[1743351186975,8.73731975,601.83,600.76,0.33291164]
[1743351187273,0.33232527,601.82,600.76,0.33291164]
[1743351190475,2.87732527,601.82,600.76,0.33291164]
[1743351190974,4.31432527,601.82,600.76,0.33291164]
[1743351191475,5.94632527,601.82,600.76,0.33291164]
[1743351212686,5.94632527,601.82,600.77,2.53385896]
[1743351216389,5.94632527,601.82,600.76,0.62224858]
[1743351216390,5.94632527,601.82,600.78,2.53385896]
[1743351217797,5.94632527,601.82,600.76,3.15610754]
[1743351218389,5.94632527,601.82,600.76,2.8667706]
[1743351218790,5.94632527,601.82,600.76,3.15610874]
[1743351218991,5.94632527,601.82,600.77,2.53385896]
[1743351220592,5.94632527,601.82,600.76,0.62224978]
[1743351221498,5.94632527,601.82,600.76,0.33291164]
[1743351221900,5.94632527,601.82,600.76,0.62224978]
[1743351224602,5.94632527,601.82,600.76,0.33291164]
[1743351224800,5.94632527,601.82,600.76,0.62224978]
[1743351230499,5.94632527,601.82,600.76,0.33291164]
[1743351230905,5.94632527,601.82,600.76,0.62225579]
[1743351232210,7.19932527,601.82,600.76,0.62225579]
[1743351233508,7.19932527,601.82,600.76,0.33291164]
[1743351234114,7.19932527,601.82,600.76,0.6222594]
[1743351236514,7.19932527,601.82,600.76,0.33291164]
[1743351236911,7.19932527,601.82,600.76,0.62224016]
[1743351239413,7.19932527,601.82,600.76,0.33291164]
[1743351240118,7.19932527,601.82,600.8,2.53385896]
[1743351241316,7.19932527,601.82,600.76,0.62224377]
[1743351242515,7.19932527,601.82,600.76,0.33291164]
[1743351242712,7.19932527,601.82,600.76,0.62224016]
[1743351245616,7.19932527,601.82,600.76,0.33291164]
[1743351245824,7.19932527,601.82,600.76,0.62222813]
[1743351248519,7.19932527,601.82,600.76,0.33291164]
[1743351248920,7.19932527,601.82,600.76,0.62224497]
[1743351251622,7.19932527,601.82,600.76,0.33291164]
[1743351252020,7.19932527,601.82,600.76,0.62224256]
[1743351252422,7.19932527,601.82,600.76,3.15610152]
[1743351253729,7.19932527,601.82,600.81,2.53385896]
[1743351254530,7.19932527,601.82,600.89,2.53385896]
[1743351256426,7.19932527,601.82,600.92,2.53385896]
[1743351258128,7.19932527,601.82,600.96,2.53385896]
[1743351259731,7.19932527,601.82,600.9,2.53385896]
[1743351261132,7.19932527,601.82,600.82,0.28929725]
[1743351263535,7.19932527,601.82,600.79,2.53385896]
[1743351263734,7.19932527,601.82,600.82,0.28931288]
[1743351268834,7.19932527,601.82,600.82,2.82317184]
[1743351269533,7.19932527,601.82,600.82,2.53385896]
[1743351269932,7.19932527,601.82,600.86,2.53385896]
[1743351271236,7.19932527,601.82,600.82,0.28930927]
[1743351272545,7.19932527,601.82,600.8,0.33288948]
[1743351273144,7.19932527,601.82,600.81,0.28931408]
[1743351275548,7.19932527,601.82,600.8,0.33288948]
[1743351275946,7.19932527,601.82,600.81,0.28931168]
[1743351278049,7.19932527,601.82,600.81,0.62219562]
[1743351278247,6.867,601.82,600.81,0.62219562]
[1743351278451,6.867,601.82,600.82,0.33287839]
[1743351280047,6.867,601.82,600.99,2.53385896]
[1743351280246,6.867,601.82,601.0,0.3327787]
[1743351312594,6.867,601.82,601.0,2.86663766]
[1743351314092,6.867,601.82,601.03,2.53385896]
[1743351314293,6.867,601.82,601.04,0.33275655]
[1743351315797,6.867,601.82,601.06,2.53385896]
[1743351315993,6.867,601.82,601.07,0.33273994]
[1743351318702,6.867,601.82,601.08,2.53385896]
[1743351318897,6.867,601.82,601.09,0.33272887]
[1743351319902,6.867,601.82,601.1,2.53385896]
[1743351320098,6.867,601.82,601.11,0.3327178]
[1743351323402,6.867,601.82,601.14,2.53385896]
[1743351323702,6.867,601.82,601.15,0.33269566]
[1743351325008,6.867,601.82,601.21,2.53385896]
[1743351325203,6.867,601.82,601.22,0.33265693]
[1743351373747,6.867,601.82,601.21,0.28915663]
[1743351374556,6.867,601.82,601.08,2.53628793]
[1743351374957,6.867,601.82,601.21,0.28917224]
[1743351375158,6.867,601.82,601.08,2.53628793]
[1743351375855,6.867,601.82,601.09,2.53628793]
[1743351377358,6.867,601.82,601.1,0.28917104]
[1743351379256,6.867,601.82,601.14,2.53628793]
[1743351380656,6.867,601.82,601.17,2.53628793]
[1743351382054,6.867,601.82,600.2,2.53628793]
[1743351382055,6.867,601.82,601.23,2.53628793]
[1743351383372,6.867,601.82,601.18,2.53628793]
[1743351384972,6.867,601.82,601.12,2.53628793]
[1743351386863,6.867,601.82,600.96,2.53628793]
[1743351388860,6.867,601.82,600.99,2.53628793]
[1743351389764,6.867,601.82,601.0,0.28920228]
[1743351391862,6.867,601.82,601.03,2.53628793]
[1743351392704,6.867,601.82,601.02,2.53628793]
[1743351393982,6.867,601.82,601.06,2.53628793]
[1743351395670,6.867,601.82,601.05,2.53628793]
[1743351397966,6.867,601.82,601.15,2.53628793]
[1743351399570,6.867,601.82,601.08,0.28918306]
[1743351399571,6.867,601.82,601.17,2.53628793]
[1743351400873,6.867,601.82,601.25,2.53628793]
[1743351404071,6.867,601.82,601.26,0.3326348]
[1743351414984,3.54640093,601.82,601.26,0.3326348]
[1743351415181,2.885,601.82,601.26,0.3326348]
[1743351416188,2.885,601.82,601.32,2.53628793]
[1743351416585,2.885,601.82,601.33,0.33259607]
[1743351431094,2.885,601.82,601.32,0.2891302]
[1743351434595,2.885,601.82,594.38,5.96453452]
[1743351434795,2.885,601.82,601.32,0.28952349]
[1743351435195,2.885,601.82,600.52,2.5305137]
[1743351435395,2.885,601.82,600.54,0.3330336]
[1743351437197,2.885,601.82,600.55,0.28933333]
[1743351437599,2.885,601.82,600.54,0.3330336]
[1743351437998,2.885,601.82,600.55,0.28933092]
[1743351438404,2.885,601.82,600.57,0.33301696]
[1743351439002,3.153,601.82,600.57,0.33301696]
[1743351451612,4.833,601.82,600.57,0.33301696]
[1743351459420,6.226,601.82,600.57,0.33301696]
[1743351463225,6.226,601.82,600.6,2.5305137]
[1743351463425,6.226,601.82,600.62,0.33298924]
[1743351464629,6.226,601.82,600.65,2.5305137]
[1743351464824,6.226,601.82,600.67,0.33296152]
[1743351465926,6.226,601.82,600.72,2.5305137]
[1743351466227,6.226,601.82,600.74,0.33292272]
[1743351467228,6.226,601.82,600.89,2.5305137]
[1743351467429,6.226,601.82,600.9,0.33283408]
[1743351471636,6.226,601.82,600.9,2.86334778]
[1743351474042,6.226,601.82,600.9,0.33283408]
[1743351476040,6.226,601.82,600.9,2.86334778]
[1743351477644,6.226,601.82,600.92,2.5305137]
[1743351477847,6.226,601.82,600.93,0.33281746]
[1743351481648,6.226,601.82,600.93,2.86333116]
[1743351482862,6.226,601.82,601.05,2.5305137]
[1743351484245,6.226,601.82,601.09,2.5305137]
[1743351485748,6.226,601.82,601.06,2.5305137]
[1743351488551,6.226,601.82,601.09,2.5305137]
[1743351489753,6.226,601.82,601.1,2.5305137]
[1743351493355,6.226,601.82,601.14,2.5305137]
[1743351494356,6.226,601.82,601.07,2.5305137]
[1743351495954,6.226,601.82,601.06,0.28923834]
[1743351497760,6.226,601.82,601.05,2.5305137]
[1743351498059,6.226,601.82,601.06,0.28924074]
[1743351500655,6.226,601.82,601.05,0.33275101]
[1743351501056,6.226,601.82,601.06,0.28924074]
[1743351503668,6.226,601.82,601.05,0.33275101]
[1743351503868,6.226,601.82,601.06,0.28924074]
[1743351509667,6.226,601.82,601.05,0.33275101]
[1743351510063,6.226,601.82,601.06,0.28924074]
[1743351512671,6.226,601.82,601.05,0.33275101]
[1743351512863,6.226,601.82,601.06,0.28924074]
[1743351513265,6.226,601.82,601.07,0.33273994]
[1743351524381,6.226,601.82,601.12,2.5305137]
[1743351525480,6.226,601.82,601.08,0.28922752]
[1743351527781,6.226,601.82,601.07,0.33273994]
[1743351528182,6.226,601.82,601.08,0.28923353]
[1743351530784,6.226,601.82,601.07,0.33273994]
[1743351530981,6.226,601.82,601.08,0.28923353]
[1743351533686,6.226,601.82,601.07,0.33273994]
[1743351534288,6.226,601.82,601.08,0.28925757]
[1743351536689,6.226,601.82,601.07,0.33273994]
[1743351537191,6.226,601.82,601.08,0.28926719]
[1743351539698,6.226,601.82,601.07,0.33273994]
[1743351540195,6.226,601.82,601.08,0.2892708]
[1743351542800,6.226,601.82,601.07,0.33273994]
[1743351542997,6.226,601.82,601.08,0.28925998]
[1743351545702,6.226,601.82,601.07,0.33273994]
[1743351546110,6.226,601.82,601.08,0.28928402]
[1743351548808,6.226,601.82,601.07,0.33273994]
[1743351549204,6.226,601.82,601.08,0.28930086]
[1743351551612,6.226,601.82,601.07,0.33273994]
[1743351551810,6.226,601.82,600.43,2.5305137]
[1743351552012,6.226,601.82,601.08,0.28932731]
[1743351552208,6.226,601.82,600.45,0.33308352]
[1743351552408,1.13873781,601.81,600.45,0.33308352]
[1743351552608,2.58133088,601.81,600.45,0.33308352]
[1743351552807,2.58132291,601.81,600.45,0.33308352]
[1743351553010,1.13873781,601.81,600.45,0.33308352]
[1743351553514,5.32389036,602.02,600.45,0.33308352]
[1743351553711,4.1361725,602.01,600.45,0.33308352]
[1743351554007,1.77481101,602.0,600.45,0.33308352]
[1743351554211,1.77481653,601.99,600.45,0.33308352]
[1743351554410,1.77482205,601.98,600.45,0.33308352]
[1743351554610,1.77482757,601.97,600.45,0.33308352]
[1743351554807,1.77483308,601.96,600.45,0.33308352]
[1743351555011,1.7748386,601.95,600.46,0.28939348]
[1743351555212,0.33225902,601.94,600.47,0.33307242]
[1743351555406,1.47099683,601.94,600.47,0.33307242]
[1743351555610,2.37921491,601.94,600.47,0.33307242]
[1743351555813,0.33226454,601.93,600.47,0.33307242]
[1743351556014,4.99120391,601.93,600.47,0.33307242]
[1743351556214,0.90821808,601.92,600.47,0.33307242]
[1743351556416,0.33227558,601.91,600.47,0.33307242]
[1743351556715,2.22227558,601.91,600.47,0.33307242]
[1743351557110,4.57307876,601.91,600.47,0.33307242]
[1743351557312,0.90821808,601.9,600.47,0.33307242]
[1743351557513,0.33228663,601.89,600.47,0.33307242]
[1743351567522,1.77059457,601.89,600.47,0.33307242]
[1743351568727,0.33228663,601.89,600.47,0.33307242]
[1743351569021,1.77059457,601.89,600.47,0.33307242]
[1743351569227,0.33228663,601.89,600.47,0.33307242]
[1743351570230,0.268,601.88,600.47,0.33307242]
[1743351570532,0.33229767,601.87,600.47,0.33307242]
[1743351582938,1.451,601.86,600.47,0.33307242]
[1743351586040,1.651,601.85,600.47,0.33307242]
[1743351591846,1.776,601.84,600.47,0.33307242]
[1743351592550,2.91473781,601.84,600.47,0.33307242]
[1743351593354,1.776,601.84,600.47,0.33307242]
[1743351595152,2.91136985,601.84,600.47,0.33307242]
[1743351595657,4.35073281,601.84,600.47,0.33307242]
[1743351596054,0.267,601.83,600.47,0.33307242]
[1743351596657,1.40236985,601.83,600.47,0.33307242]
[1743351601559,2.31077619,601.83,600.47,0.33307242]
[1743351601753,3.75013915,601.83,600.47,0.33307242]
[1743351602156,3.75013915,601.83,600.63,2.5305137]
[1743351602356,1.43936296,601.82,600.63,2.8634974]
[1743351602652,3.75013915,601.83,600.63,2.8634974]
[1743351602954,1.13536985,601.81,600.63,2.8634974]
[1743351603156,1.43936296,601.8,600.63,2.8634974]
[1743351603352,1.43936296,601.79,600.63,2.8634974]
[1743351603558,2.57473281,601.81,600.63,2.8634974]
[1743351603855,1.13536985,601.78,600.64,0.33297815]
[1743351604255,1.13536985,601.77,600.64,0.33297815]
[1743351604959,2.57473281,601.77,600.64,0.33297815]
[1743351605154,1.13536985,601.76,600.64,0.33297815]
[1743351605358,1.43936296,601.75,600.64,0.33297815]
[1743351605957,1.44607466,601.75,600.64,0.33297815]
[1743351606154,2.58144451,601.74,600.64,0.33297815]
[1743351606363,1.44607466,601.73,600.64,0.33297815]
[1743351606561,1.44607466,601.72,600.64,0.33297815]
[1743351606761,1.44607466,601.71,600.64,0.33297815]
[1743351607158,1.44607466,601.7,600.64,0.33297815]
[1743351607358,1.44715396,601.71,600.64,0.33297815]
[1743351607559,1.44715396,601.7,600.64,0.33297815]
[1743351607859,1.44715396,601.71,600.64,0.33297815]
[1743351608057,2.58252381,601.7,600.64,0.33297815]
[1743351608256,1.44715396,601.69,600.64,0.33297815]
[1743351608461,2.58252381,601.68,600.64,0.33297815]
[1743351608763,1.13536985,601.68,600.64,0.33297815]
[1743351609464,2.58320602,601.67,600.64,0.33297815]
[1743351609663,1.44783617,601.66,600.64,0.33297815]
[1743351609866,1.13536985,601.67,600.64,0.33297815]
[1743351610166,1.13536985,601.65,600.64,0.33297815]
[1743351610959,1.13536985,601.64,600.64,0.33297815]
[1743351611365,1.13536985,601.63,600.64,0.33297815]
[1743351612163,1.13536985,601.62,600.64,0.33297815]
[1743351612664,1.13536985,601.61,600.64,0.33297815]
[1743351613466,2.36090263,601.75,600.64,0.33297815]
[1743351613665,2.36090263,601.74,600.64,0.33297815]
[1743351613865,1.44880806,601.73,600.64,0.33297815]
[1743351614062,1.4490264,601.72,600.64,0.33297815]
[1743351614263,1.1432657,601.73,600.64,0.33297815]
[1743351615366,0.267,601.83,600.64,0.33297815]
[1743351615667,1.691,601.72,600.64,0.33297815]
[1743351619369,0.267,601.71,600.64,0.33297815]
[1743351622368,1.797,601.7,600.64,0.33297815]
[1743351636380,2.926,601.7,600.64,0.33297815]
[1743351637986,3.193,601.7,600.64,0.33297815]
[1743351642687,4.659,601.7,600.64,0.33297815]
[1743351648394,4.659,601.7,600.65,2.5305137]
[1743351648593,4.659,601.7,600.67,0.33296152]
[1743351650495,4.659,601.7,600.7,2.5305137]
[1743351650794,4.659,601.7,600.71,0.33293935]
[1743351651891,4.659,601.7,600.71,2.86345305]
[1743351652195,5.813,601.7,600.71,2.86345305]
[1743351653296,5.813,601.7,600.73,2.5305137]
[1743351653497,5.813,601.7,600.74,0.33292272]
[1743351666210,5.813,601.7,600.86,2.5305137]
[1743351667914,5.813,601.7,600.74,0.33292272]
[1743351667915,5.813,601.7,600.78,2.5305137]
[1743351668216,5.813,601.7,600.79,0.33289502]
[1743351670118,5.813,601.7,600.82,2.5305137]
[1743351671921,5.813,601.7,600.85,2.5305137]
[1743351672321,5.813,601.7,600.86,0.33285623]
[1743351682224,5.813,601.7,600.86,2.86336993]
[1743351684124,5.813,601.7,600.86,0.33285623]
[1743351694733,5.813,601.7,600.99,2.5305137]
[1743351694933,5.813,601.7,601.0,0.3327787]
[1743351697635,5.813,601.7,601.02,2.5305137]
[1743351697841,5.813,601.7,601.03,0.33276209]
[1743351702245,5.813,601.7,601.03,2.86327579]
[1743351703242,5.813,601.7,601.05,2.5305137]
[1743351703443,5.813,601.7,601.06,0.33274548]
[1743351704744,5.813,601.7,601.09,2.5305137]
[1743351704946,5.813,601.7,601.1,0.33272334]
[1743351705647,5.813,601.7,601.1,2.86323704]
[1743351706946,5.813,601.7,601.12,2.5305137]
[1743351707146,5.813,601.7,601.12,2.86322597]
[1743351707947,5.813,601.7,601.14,2.5305137]
[1743351709544,5.813,601.7,601.12,0.33271227]
[1743351739266,5.813,601.7,601.11,0.28929364]
[1743351740871,5.813,601.7,600.57,2.5305137]
[1743351741169,5.813,601.7,601.11,0.28938265]
[1743351741374,5.813,601.7,600.59,0.33300587]
[1743351742869,5.813,601.7,600.6,0.28940311]
[1743351743074,5.813,601.7,600.61,0.33299478]
[1743351755487,5.813,601.7,600.62,2.5305137]
[1743351755787,5.813,601.7,600.63,0.3329837]
[1743351757386,5.813,601.7,600.63,2.8634974]
[1743351758890,5.813,601.7,600.64,2.5305137]
[1743351759094,5.813,601.7,600.65,0.33297261]
[1743351761787,5.813,601.7,600.71,2.5305137]
[1743351761990,5.813,601.7,600.71,2.86345305]
[1743351763189,5.813,601.7,600.77,2.5305137]
[1743351764291,5.813,601.7,600.74,2.5305137]
[1743351766494,5.813,601.7,600.71,0.33293935]
[1743351769304,5.813,601.7,600.78,2.5305137]
[1743351770904,5.813,601.7,600.79,2.5305137]
[1743351771803,5.813,601.7,600.73,0.28939107]
[1743351771804,5.813,601.7,600.8,2.5305137]
[1743351773400,5.813,601.7,600.73,0.28939107]
[1743351773805,5.813,601.7,600.71,0.33293935]
[1743351774203,5.813,601.7,600.73,0.2893995]
[1743351776804,5.813,601.7,600.71,0.33293935]
[1743351777304,5.813,601.7,600.72,0.28945968]
[1743351779809,5.813,601.7,600.71,0.33293935]
[1743351780207,5.813,601.7,600.72,0.2893995]
[1743351782909,5.813,601.7,600.71,0.33293935]
[1743351783111,5.813,601.7,600.72,0.2893995]
[1743351785909,5.813,601.7,600.71,0.33293935]
[1743351786109,5.813,601.7,600.72,0.2893995]
[1743351788913,5.813,601.7,600.71,0.33293935]
[1743351789213,5.813,601.7,600.72,0.28938024]
[1743351791912,5.813,601.7,600.71,0.33293935]
[1743351792916,5.813,601.7,600.72,0.28938987]
[1743351794819,5.813,601.7,600.71,0.33293935]
[1743351795318,5.813,601.7,600.72,0.28939348]
[1743351797817,5.813,601.7,600.71,0.33293935]
[1743351798313,5.813,601.7,600.72,0.28938024]
[1743351800929,5.813,601.7,600.71,0.33293935]
[1743351801130,5.813,601.7,600.72,0.28938024]
[1743351807835,2.59780906,601.69,600.72,0.28938024]
[1743351808236,1.14570757,601.69,600.72,0.28938024]
[1743351808636,1.14570757,601.68,600.72,0.28938024]
[1743351809438,1.14570757,601.67,600.72,0.28938024]
[1743351809835,1.14570757,601.67,600.71,0.33293935]
[1743351810438,1.14570757,601.66,600.72,0.28950422]
[1743351811236,1.88,601.65,600.72,0.28950422]
[1743351811439,4.44170757,601.65,600.72,0.28950422]
[1743351812037,3.296,601.65,600.72,0.28950422]
[1743351812238,2.08,601.64,600.72,0.28950422]
[1743351812935,2.08,601.64,600.71,0.33293935]
[1743351813133,2.08,601.64,600.72,0.28941394]
[1743351818942,2.08,601.64,600.71,0.33293935]
[1743351819444,2.08,601.64,600.72,0.28941875]
[1743351821939,2.08,601.64,600.71,0.33293935]
[1743351824450,2.08,601.64,600.72,0.28943199]
[1743351824853,2.08,601.64,600.71,0.33293935]
[1743351827254,1.38,601.63,600.71,0.33293935]
[1743351828056,1.38,601.63,600.72,0.28943319]
[1743351830861,1.38,601.63,600.71,0.33293935]
[1743351831160,1.38,601.63,600.72,0.28942236]
[1743351832458,0.265,601.62,600.72,0.28942236]
[1743351833059,1.819,601.61,600.72,0.28942236]
[1743351833864,1.819,601.61,600.71,0.33293935]
[1743351834272,1.819,601.61,600.72,0.28941995]
[1743351834766,1.684,601.6,600.72,0.28941995]
[1743351835358,1.447,601.59,600.72,0.28941995]
[1743351836964,1.447,601.59,600.71,0.33293935]
[1743351837165,1.447,601.59,600.72,0.28939829]
[1743351837361,1.447,601.59,600.73,0.33292827]
[1743351841061,1.447,601.59,600.76,2.5305137]
[1743351841260,1.447,601.59,600.77,0.3329061]
[1743351842065,1.447,601.59,600.78,2.5305137]
[1743351842270,1.447,601.59,600.78,2.86341426]
[1743351845472,1.447,601.59,600.78,0.33290056]
[1743351847574,1.684,601.6,600.78,0.33290056]
[1743351848274,1.684,601.6,600.78,2.86341426]
[1743351849376,1.684,601.6,600.78,0.33290056]
[1743351850377,1.182,601.59,600.78,0.33290056]
[1743351851980,0.265,601.58,600.78,0.33290056]
[1743351855480,1.941,601.58,600.78,0.33290056]
[1743351869592,1.941,601.58,600.93,2.5305137]
[1743351870189,3.489,601.58,600.93,2.5305137]
[1743351871197,3.489,601.58,600.95,2.5305137]
[1743351873996,3.489,601.58,601.0,2.5305137]
[1743351875600,3.489,601.58,600.94,2.5305137]
[1743351877202,3.489,601.58,600.9,0.28931649]
[1743351877402,3.489,601.58,600.91,0.33282854]
[1743351885902,3.489,601.58,600.93,2.5305137]